[Event "Titled Tuesday Blitz July 20 2021"]
[White "Trent, Lawrence"]
[Black "Samsonkin, Artiom"]
[WhiteFideId "408638"]
[BlackFideId "13503111"]
[WhiteElo "2474"]
[BlackElo "2513"]
[Result "1-0"]
[Round "05"]
[TimeControl "180+1"]
[Date "2021.07.21"]
[WhiteClock "0:00:05"]
[BlackClock "0:00:05"]

1. c4 {[%clk 0:03:00]}  Nf6 {[%clk 0:02:58]} 2. Nc3 {[%clk 0:02:58]}  e6 {[%clk 0:02:58]} 3. e4 {[%clk 0:02:55]}  d5 {[%clk 0:02:59]} 4. e5 {[%clk 0:02:53]}  d4 {[%clk 0:02:58]} 5. exf6 {[%clk 0:02:53]}  dxc3 {[%clk 0:02:59]} 6. bxc3 {[%clk 0:02:53]}  Qxf6 {[%clk 0:02:59]} 7. Bd3 {[%clk 0:02:53]}  e5 {[%clk 0:02:52]} 8. Be4 {[%clk 0:02:51]}  Na6 {[%clk 0:02:52]} 9. Nf3 {[%clk 0:02:38]}  Nc5 {[%clk 0:02:49]} 10. Qe2 {[%clk 0:02:37]}  Bd6 {[%clk 0:02:12]} 11. d4 {[%clk 0:02:28]}  Nxe4 {[%clk 0:02:12]} 12. Qxe4 {[%clk 0:02:27]}  Bf5 {[%clk 0:02:13]} 13. Qxb7 {[%clk 0:02:16]}  O-O {[%clk 0:02:10]} 14. O-O {[%clk 0:02:12]}  Rab8 {[%clk 0:01:43]} 15. Qxa7 {[%clk 0:02:02]}  e4 {[%clk 0:01:37]} 16. Ne5 {[%clk 0:01:56]}  Bxe5 {[%clk 0:01:20]} 17. dxe5 {[%clk 0:01:55]}  Qxe5 {[%clk 0:01:20]} 18. Qd4 {[%clk 0:01:54]}  Qe6 {[%clk 0:01:18]} 19. Bf4 {[%clk 0:01:52]}  Rb6 {[%clk 0:01:06]} 20. Bxc7 {[%clk 0:01:51]}  Rc6 {[%clk 0:01:06]} 21. Bg3 {[%clk 0:01:42]}  Rxc4 {[%clk 0:01:06]} 22. Qe3 {[%clk 0:01:42]}  Rfc8 {[%clk 0:01:05]} 23. Rfc1 {[%clk 0:01:38]}  h5 {[%clk 0:01:04]} 24. a4 {[%clk 0:01:37]}  Rd8 {[%clk 0:00:53]} 25. a5 {[%clk 0:01:33]}  Rd3 {[%clk 0:00:52]} 26. Qe1 {[%clk 0:01:33]}  e3 {[%clk 0:00:43]} 27. a6 {[%clk 0:01:30]}  Be4 {[%clk 0:00:42]} 28. fxe3 {[%clk 0:01:17]}  Ba8 {[%clk 0:00:42]} 29. Bf4 {[%clk 0:00:58]}  g5 {[%clk 0:00:28]} 30. Qg3 {[%clk 0:00:53]}  f6 {[%clk 0:00:26]} 31. Bxg5 {[%clk 0:00:49]}  Kh7 {[%clk 0:00:21]} 32. Rc2 {[%clk 0:00:18]}  Rd7 {[%clk 0:00:19]} 33. Bf4 {[%clk 0:00:16]}  Qe4 {[%clk 0:00:19]} 34. Rf2 {[%clk 0:00:15]}  Rg7 {[%clk 0:00:20]} 35. Qh3 {[%clk 0:00:15]}  Rxc3 {[%clk 0:00:19]} 36. Qxh5+ {[%clk 0:00:15]}  Kg8 {[%clk 0:00:19]} 37. Qh3 {[%clk 0:00:12]}  Rc2 {[%clk 0:00:19]} 38. Raf1 {[%clk 0:00:11]}  Rxf2 {[%clk 0:00:17]} 39. Rxf2 {[%clk 0:00:11]}  Qb1+ {[%clk 0:00:15]} 40. Rf1 {[%clk 0:00:11]}  Qc2 {[%clk 0:00:16]} 41. Bg3 {[%clk 0:00:09]}  Qc6 {[%clk 0:00:14]} 42. a7 {[%clk 0:00:09]}  Rh7 {[%clk 0:00:14]} 43. Qg4+ {[%clk 0:00:09]}  Kh8 {[%clk 0:00:12]} 44. Qe2 {[%clk 0:00:08]}  Rxa7 {[%clk 0:00:12]} 45. Qf2 {[%clk 0:00:07]}  Kg7 {[%clk 0:00:11]} 46. Bh4 {[%clk 0:00:07]}  Rf7 {[%clk 0:00:10]} 47. h3 {[%clk 0:00:07]}  Qe4 {[%clk 0:00:09]} 48. Qg3+ {[%clk 0:00:07]}  Kf8 {[%clk 0:00:09]} 49. Rf4 {[%clk 0:00:08]}  Qb1+ {[%clk 0:00:08]} 50. Kh2 {[%clk 0:00:09]}  Qh7 {[%clk 0:00:08]} 51. Bxf6 {[%clk 0:00:09]}  Be4 {[%clk 0:00:05]} 52. Rh4 {[%clk 0:00:09]}  Rxf6 {[%clk 0:00:02]} 53. Rxh7 {[%clk 0:00:08]}  Bxh7 {[%clk 0:00:03]} 54. Qe5 {[%clk 0:00:07]}  Kg7 {[%clk 0:00:04]} 55. g4 {[%clk 0:00:07]}  Kg6 {[%clk 0:00:04]} 56. Kg3 {[%clk 0:00:07]}  Bg8 {[%clk 0:00:04]} 57. Kh4 {[%clk 0:00:07]}  Re6 {[%clk 0:00:05]} 58. Qg5+ {[%clk 0:00:07]}  Kf7 {[%clk 0:00:05]} 59. Kg3 {[%clk 0:00:05]}  Bh7 {[%clk 0:00:04]} 60. h4 {[%clk 0:00:05]}  Rg6 {[%clk 0:00:04]} 61. Qf4+ {[%clk 0:00:05]}  Kg7 {[%clk 0:00:05]} 62. Qc7+ {[%clk 0:00:05]}  Kg8 {[%clk 0:00:05]} 63. h5 {[%clk 0:00:05]} 1-0


[Site "https://www.chess.com"]

[Event "Titled Tuesday Blitz July 20 2021"]
[White "Vagman, Roy"]
[Black "Janaszak, Dawid"]
[WhiteFideId "2828995"]
[BlackFideId "1119206"]
[WhiteElo "1782"]
[BlackElo "2332"]
[Result "0-1"]
[Round "05"]
[TimeControl "180+1"]
[Date "2021.07.21"]
[WhiteClock "0:00:08"]
[BlackClock "0:00:41"]

1. e4 {[%clk 0:03:00]}  c5 {[%clk 0:02:59]} 2. Nf3 {[%clk 0:02:56]}  g6 {[%clk 0:02:59]} 3. c4 {[%clk 0:02:54]}  Bg7 {[%clk 0:02:58]} 4. d4 {[%clk 0:02:55]}  cxd4 {[%clk 0:02:58]} 5. Nxd4 {[%clk 0:02:56]}  Nc6 {[%clk 0:02:58]} 6. Be3 {[%clk 0:02:51]}  Qb6 {[%clk 0:02:58]} 7. Nb3 {[%clk 0:02:47]}  Qd8 {[%clk 0:02:56]} 8. Nc3 {[%clk 0:02:47]}  Bxc3+ {[%clk 0:02:56]} 9. bxc3 {[%clk 0:02:48]}  d6 {[%clk 0:02:56]} 10. c5 {[%clk 0:02:47]}  Nf6 {[%clk 0:02:50]} 11. cxd6 {[%clk 0:02:46]}  O-O {[%clk 0:02:33]} 12. dxe7 {[%clk 0:02:43]}  Qxe7 {[%clk 0:02:32]} 13. f3 {[%clk 0:02:40]}  Rd8 {[%clk 0:02:30]} 14. Qc2 {[%clk 0:02:37]}  b6 {[%clk 0:02:24]} 15. Be2 {[%clk 0:02:33]}  Bb7 {[%clk 0:02:17]} 16. O-O {[%clk 0:02:33]}  Rac8 {[%clk 0:02:13]} 17. Rad1 {[%clk 0:02:28]}  Nd5 {[%clk 0:02:12]} 18. Bf2 {[%clk 0:01:58]}  Ncb4 {[%clk 0:02:11]} 19. Qd2 {[%clk 0:01:57]}  Nxc3 {[%clk 0:02:08]} 20. Qe3 {[%clk 0:01:46]}  Nxd1 {[%clk 0:02:06]} 21. Bxd1 {[%clk 0:01:47]}  Nxa2 {[%clk 0:02:00]} 22. Nd4 {[%clk 0:01:44]}  Nc3 {[%clk 0:01:58]} 23. Qf4 {[%clk 0:01:09]}  Nxd1 {[%clk 0:01:50]} 24. Rxd1 {[%clk 0:01:10]}  Qc7 {[%clk 0:01:30]} 25. Qf6 {[%clk 0:00:47]}  Qd6 {[%clk 0:01:23]} 26. Qg5 {[%clk 0:00:38]}  Qc5 {[%clk 0:01:19]} 27. Qf6 {[%clk 0:00:35]}  Rd6 {[%clk 0:01:17]} 28. Qf4 {[%clk 0:00:29]}  Rcd8 {[%clk 0:01:16]} 29. e5 {[%clk 0:00:25]}  Rd5 {[%clk 0:01:12]} 30. e6 {[%clk 0:00:22]}  fxe6 {[%clk 0:01:12]} 31. Qf6 {[%clk 0:00:21]}  Qd6 {[%clk 0:00:51]} 32. Bg3 {[%clk 0:00:08]}  e5 {[%clk 0:00:51]} 33. Qg5 {[%clk 0:00:02]}  Rxd4 {[%clk 0:00:48]} 34. Re1 {[%clk 0:00:03]}  Rd1 {[%clk 0:00:47]} 35. Bxe5 {[%clk 0:00:02]}  Rxe1+ {[%clk 0:00:46]} 36. Kf2 {[%clk 0:00:02]}  Rxe5 {[%clk 0:00:42]} 37. Qf4 {[%clk 0:00:02]}  Re2+ {[%clk 0:00:41]} 38. Kg3 {[%clk 0:00:03]}  Qxf4+ {[%clk 0:00:42]} 39. Kxf4 {[%clk 0:00:03]}  Rxg2 {[%clk 0:00:42]} 40. h4 {[%clk 0:00:04]}  a5 {[%clk 0:00:42]} 41. h5 {[%clk 0:00:05]}  a4 {[%clk 0:00:43]} 42. h6 {[%clk 0:00:06]}  a3 {[%clk 0:00:42]} 43. Ke5 {[%clk 0:00:07]}  a2 {[%clk 0:00:42]} 44. Kf4 {[%clk 0:00:07]}  a1=Q {[%clk 0:00:42]} 45. Ke3 {[%clk 0:00:08]}  Qe5# {[%clk 0:00:41]} 0-1


[Site "https://www.chess.com"]

[Event "Titled Tuesday Blitz July 20 2021"]
[White "ValeriyGrinev"]
[Black "Krallis, Christos"]
[BlackFideId "4298896"]
[WhiteElo "2625"]
[BlackElo "2193"]
[Result "1-0"]
[Round "05"]
[TimeControl "180+1"]
[Date "2021.07.21"]
[WhiteClock "0:01:01"]
[BlackClock "0:00:06"]

1. d4 {[%clk 0:03:00]}  Nf6 {[%clk 0:02:59]} 2. c4 {[%clk 0:03:00]}  e6 {[%clk 0:02:59]} 3. g3 {[%clk 0:03:01]}  d5 {[%clk 0:02:58]} 4. Nf3 {[%clk 0:03:01]}  Be7 {[%clk 0:02:55]} 5. Bg2 {[%clk 0:03:01]}  O-O {[%clk 0:02:53]} 6. O-O {[%clk 0:03:01]}  c6 {[%clk 0:02:47]} 7. Qc2 {[%clk 0:03:01]}  b6 {[%clk 0:02:47]} 8. Nbd2 {[%clk 0:03:01]}  Bb7 {[%clk 0:02:47]} 9. e4 {[%clk 0:03:01]}  Na6 {[%clk 0:02:47]} 10. cxd5 {[%clk 0:02:44]}  cxd5 {[%clk 0:02:45]} 11. e5 {[%clk 0:02:44]}  Ne4 {[%clk 0:02:42]} 12. a3 {[%clk 0:02:40]}  Rc8 {[%clk 0:02:33]} 13. Qb1 {[%clk 0:02:35]}  f5 {[%clk 0:02:28]} 14. exf6 {[%clk 0:02:34]}  gxf6 {[%clk 0:02:16]} 15. Re1 {[%clk 0:02:34]}  Nc7 {[%clk 0:01:53]} 16. Bf1 {[%clk 0:02:24]}  Ne8 {[%clk 0:01:50]} 17. Bd3 {[%clk 0:02:24]}  N8d6 {[%clk 0:01:48]} 18. Nf1 {[%clk 0:02:18]}  Qe8 {[%clk 0:01:45]} 19. Bh6 {[%clk 0:02:16]}  Rf7 {[%clk 0:01:10]} 20. N3d2 {[%clk 0:02:11]}  Nf5 {[%clk 0:01:04]} 21. Be3 {[%clk 0:02:10]}  Nxe3 {[%clk 0:00:59]} 22. Rxe3 {[%clk 0:02:08]}  f5 {[%clk 0:00:58]} 23. Re1 {[%clk 0:02:04]}  Bf6 {[%clk 0:00:54]} 24. Nf3 {[%clk 0:02:03]}  Rg7 {[%clk 0:00:52]} 25. Rc1 {[%clk 0:02:00]}  Rgc7 {[%clk 0:00:42]} 26. Rxc7 {[%clk 0:01:54]}  Rxc7 {[%clk 0:00:43]} 27. Qd1 {[%clk 0:01:53]}  Kg7 {[%clk 0:00:30]} 28. Rc1 {[%clk 0:01:51]}  Rxc1 {[%clk 0:00:29]} 29. Qxc1 {[%clk 0:01:52]}  Qc6 {[%clk 0:00:28]} 30. Qf4 {[%clk 0:01:50]}  Qd6 {[%clk 0:00:22]} 31. Qc1 {[%clk 0:01:36]}  Bc6 {[%clk 0:00:16]} 32. Ne5 {[%clk 0:01:29]}  Bxe5 {[%clk 0:00:16]} 33. dxe5 {[%clk 0:01:30]}  Qc5 {[%clk 0:00:16]} 34. Qf4 {[%clk 0:01:26]}  Bb5 {[%clk 0:00:12]} 35. Bxe4 {[%clk 0:01:25]}  dxe4 {[%clk 0:00:05]} 36. Qg5+ {[%clk 0:01:23]}  Kf7 {[%clk 0:00:05]} 37. Qf6+ {[%clk 0:01:23]}  Ke8 {[%clk 0:00:05]} 38. Qxe6+ {[%clk 0:01:24]}  Kd8 {[%clk 0:00:06]} 39. Ne3 {[%clk 0:01:18]}  Be2 {[%clk 0:00:04]} 40. Qd5+ {[%clk 0:01:15]}  Qxd5 {[%clk 0:00:04]} 41. Nxd5 {[%clk 0:01:16]}  Kd7 {[%clk 0:00:04]} 42. Nf4 {[%clk 0:01:16]}  Bf3 {[%clk 0:00:04]} 43. Kf1 {[%clk 0:01:16]}  Bd1 {[%clk 0:00:03]} 44. Ke1 {[%clk 0:01:16]}  Bb3 {[%clk 0:00:03]} 45. Kd2 {[%clk 0:01:16]}  a5 {[%clk 0:00:03]} 46. Kc3 {[%clk 0:01:16]}  Bf7 {[%clk 0:00:04]} 47. Kd4 {[%clk 0:01:13]}  Be6 {[%clk 0:00:04]} 48. Ng2 {[%clk 0:01:10]}  b5 {[%clk 0:00:04]} 49. Ne3 {[%clk 0:01:10]}  b4 {[%clk 0:00:02]} 50. axb4 {[%clk 0:01:10]}  axb4 {[%clk 0:00:03]} 51. Kc5 {[%clk 0:01:10]}  b3 {[%clk 0:00:03]} 52. Nd5 {[%clk 0:01:04]}  Bf7 {[%clk 0:00:04]} 53. Nf4 {[%clk 0:01:04]}  Bg8 {[%clk 0:00:03]} 54. Kb4 {[%clk 0:01:04]}  Bf7 {[%clk 0:00:03]} 55. e6+ {[%clk 0:01:03]}  Bxe6 {[%clk 0:00:03]} 56. Nxe6 {[%clk 0:01:04]}  Kxe6 {[%clk 0:00:04]} 57. Kxb3 {[%clk 0:01:05]}  f4 {[%clk 0:00:04]} 58. gxf4 {[%clk 0:00:59]}  Kf5 {[%clk 0:00:04]} 59. Kc4 {[%clk 0:01:00]}  Kxf4 {[%clk 0:00:05]} 60. Kd4 {[%clk 0:01:01]}  Kf3 {[%clk 0:00:03]} 61. b4 {[%clk 0:01:00]}  Kxf2 {[%clk 0:00:03]} 62. Kxe4 {[%clk 0:01:01]}  h5 {[%clk 0:00:04]} 63. b5 {[%clk 0:01:02]}  h4 {[%clk 0:00:05]} 64. b6 {[%clk 0:00:59]}  Kg2 {[%clk 0:00:05]} 65. b7 {[%clk 0:01:00]}  Kxh2 {[%clk 0:00:06]} 66. b8=Q+ {[%clk 0:01:00]}  Kg2 {[%clk 0:00:05]} 67. Qb2+ {[%clk 0:01:00]}  Kg3 {[%clk 0:00:04]} 68. Qc3+ {[%clk 0:00:59]}  Kg2 {[%clk 0:00:05]} 69. Qd2+ {[%clk 0:00:59]}  Kg3 {[%clk 0:00:04]} 70. Qe3+ {[%clk 0:01:00]}  Kg2 {[%clk 0:00:05]} 71. Qe2+ {[%clk 0:01:00]}  Kg3 {[%clk 0:00:05]} 72. Qf3+ {[%clk 0:01:01]}  Kh2 {[%clk 0:00:06]} 73. Kf4 {[%clk 0:01:01]}  h3 {[%clk 0:00:06]} 74. Qg3+ {[%clk 0:01:01]} 1-0


[Site "https://www.chess.com"]

[Event "Titled Tuesday Blitz July 20 2021"]
[White "Vdovin, Vadim"]
[Black "Fisabilillah, Ummi"]
[WhiteFideId "24107158"]
[BlackFideId "7104804"]
[WhiteElo "2406"]
[BlackElo "2091"]
[Result "1-0"]
[Round "05"]
[TimeControl "180+1"]
[Date "2021.07.21"]
[WhiteClock "0:00:09"]
[BlackClock "0:00:01"]

1. e4 {[%clk 0:03:00]}  e6 {[%clk 0:02:59]} 2. d4 {[%clk 0:03:00]}  d5 {[%clk 0:03:00]} 3. Nc3 {[%clk 0:03:01]}  Bb4 {[%clk 0:03:00]} 4. e5 {[%clk 0:03:01]}  b6 {[%clk 0:02:59]} 5. a3 {[%clk 0:03:00]}  Bf8 {[%clk 0:02:58]} 6. Nf3 {[%clk 0:02:55]}  Qd7 {[%clk 0:02:56]} 7. Be3 {[%clk 0:02:48]}  Ne7 {[%clk 0:02:56]} 8. Ne2 {[%clk 0:02:34]}  Ba6 {[%clk 0:02:55]} 9. Nf4 {[%clk 0:02:23]}  Bxf1 {[%clk 0:02:40]} 10. Kxf1 {[%clk 0:02:24]}  Nf5 {[%clk 0:02:41]} 11. g4 {[%clk 0:02:18]}  Ne7 {[%clk 0:02:13]} 12. Kg2 {[%clk 0:02:14]}  Ng6 {[%clk 0:02:09]} 13. Nh5 {[%clk 0:02:09]}  c5 {[%clk 0:02:07]} 14. c3 {[%clk 0:02:09]}  Nc6 {[%clk 0:02:05]} 15. b4 {[%clk 0:02:09]}  c4 {[%clk 0:01:47]} 16. h4 {[%clk 0:02:02]}  O-O-O {[%clk 0:01:45]} 17. a4 {[%clk 0:01:59]}  Kb8 {[%clk 0:01:26]} 18. a5 {[%clk 0:01:50]}  b5 {[%clk 0:01:26]} 19. Ng3 {[%clk 0:01:32]}  a6 {[%clk 0:01:23]} 20. h5 {[%clk 0:01:30]}  Nge7 {[%clk 0:01:23]} 21. h6 {[%clk 0:01:29]}  f6 {[%clk 0:01:04]} 22. hxg7 {[%clk 0:01:18]}  Bxg7 {[%clk 0:01:03]} 23. exf6 {[%clk 0:01:15]}  Bxf6 {[%clk 0:01:04]} 24. Qe2 {[%clk 0:01:10]}  Kb7 {[%clk 0:01:03]} 25. Bg5 {[%clk 0:01:03]}  Bxg5 {[%clk 0:00:41]} 26. Nxg5 {[%clk 0:01:02]}  Ng6 {[%clk 0:00:41]} 27. Nh5 {[%clk 0:00:52]}  e5 {[%clk 0:00:36]} 28. dxe5 {[%clk 0:00:48]}  Ncxe5 {[%clk 0:00:31]} 29. f3 {[%clk 0:00:43]}  Nd3 {[%clk 0:00:23]} 30. Qe3 {[%clk 0:00:32]}  Qc7 {[%clk 0:00:19]} 31. Ne6 {[%clk 0:00:30]}  Qd6 {[%clk 0:00:16]} 32. Nc5+ {[%clk 0:00:24]}  Ka8 {[%clk 0:00:15]} 33. Nxd3 {[%clk 0:00:24]}  cxd3 {[%clk 0:00:15]} 34. Qxd3 {[%clk 0:00:24]}  Ne5 {[%clk 0:00:15]} 35. Qd4 {[%clk 0:00:23]}  Rhf8 {[%clk 0:00:15]} 36. Rhf1 {[%clk 0:00:23]}  Nc4 {[%clk 0:00:12]} 37. Rae1 {[%clk 0:00:21]}  Rde8 {[%clk 0:00:12]} 38. Ng3 {[%clk 0:00:16]}  Qg6 {[%clk 0:00:11]} 39. Qxd5+ {[%clk 0:00:13]}  Kb8 {[%clk 0:00:10]} 40. Nf5 {[%clk 0:00:10]}  Rxe1 {[%clk 0:00:08]} 41. Rxe1 {[%clk 0:00:11]}  h5 {[%clk 0:00:07]} 42. Re7 {[%clk 0:00:09]}  Ne3+ {[%clk 0:00:04]} 43. Nxe3 {[%clk 0:00:09]}  Kc8 {[%clk 0:00:01]} 44. Qb7+ {[%clk 0:00:09]} 1-0


[Site "https://www.chess.com"]

[Event "Titled Tuesday Blitz July 20 2021"]
[White "Vukovic, Zdravko"]
[Black "Preotu, Razvan"]
[WhiteFideId "900877"]
[BlackFideId "2613280"]
[WhiteElo "2592"]
[BlackElo "2407"]
[Result "0-1"]
[Round "05"]
[TimeControl "180+1"]
[Date "2021.07.20"]
[WhiteClock "0:00:28"]
[BlackClock "0:00:33"]

1. e4 {[%clk 0:02:58]}  c5 {[%clk 0:02:59]} 2. b3 {[%clk 0:02:58]}  Nf6 {[%clk 0:02:57]} 3. e5 {[%clk 0:02:58]}  Nd5 {[%clk 0:02:57]} 4. Bb2 {[%clk 0:02:58]}  Nc6 {[%clk 0:02:56]} 5. Nf3 {[%clk 0:02:55]}  d6 {[%clk 0:02:56]} 6. Bb5 {[%clk 0:02:53]}  Nc7 {[%clk 0:02:47]} 7. Bxc6+ {[%clk 0:02:53]}  bxc6 {[%clk 0:02:48]} 8. exd6 {[%clk 0:02:52]}  exd6 {[%clk 0:02:48]} 9. O-O {[%clk 0:02:51]}  Bg4 {[%clk 0:02:41]} 10. h3 {[%clk 0:02:42]}  Bh5 {[%clk 0:02:40]} 11. d3 {[%clk 0:02:37]}  Be7 {[%clk 0:02:36]} 12. Nbd2 {[%clk 0:02:21]}  O-O {[%clk 0:02:36]} 13. Re1 {[%clk 0:02:20]}  Re8 {[%clk 0:02:23]} 14. Ne4 {[%clk 0:02:16]}  Ne6 {[%clk 0:02:18]} 15. Ng3 {[%clk 0:02:11]}  Bg6 {[%clk 0:02:18]} 16. Qd2 {[%clk 0:02:11]}  a5 {[%clk 0:02:03]} 17. a4 {[%clk 0:01:57]}  Bf6 {[%clk 0:02:01]} 18. Bxf6 {[%clk 0:01:53]}  Qxf6 {[%clk 0:02:02]} 19. Rab1 {[%clk 0:01:40]}  h6 {[%clk 0:01:41]} 20. Re3 {[%clk 0:01:39]}  Reb8 {[%clk 0:01:29]} 21. Rbe1 {[%clk 0:01:37]}  Qf4 {[%clk 0:01:28]} 22. Rxe6 {[%clk 0:01:19]}  Qxd2 {[%clk 0:01:27]} 23. Nxd2 {[%clk 0:01:19]}  fxe6 {[%clk 0:01:26]} 24. Rxe6 {[%clk 0:01:20]}  Bf7 {[%clk 0:01:00]} 25. Rxd6 {[%clk 0:01:20]}  c4 {[%clk 0:00:55]} 26. Nxc4 {[%clk 0:01:11]}  Bxc4 {[%clk 0:00:55]} 27. dxc4 {[%clk 0:01:11]}  Rd8 {[%clk 0:00:52]} 28. Rxc6 {[%clk 0:01:08]}  Rd1+ {[%clk 0:00:51]} 29. Kh2 {[%clk 0:01:05]}  Rd2 {[%clk 0:00:52]} 30. f3 {[%clk 0:00:59]}  Rxc2 {[%clk 0:00:49]} 31. Nf5 {[%clk 0:00:56]}  Ra7 {[%clk 0:00:40]} 32. Nd4 {[%clk 0:00:44]}  Rb2 {[%clk 0:00:37]} 33. Rb6 {[%clk 0:00:42]}  Rd7 {[%clk 0:00:36]} 34. Nf5 {[%clk 0:00:34]}  Rdd2 {[%clk 0:00:35]} 35. Ne3 {[%clk 0:00:35]}  Re2 {[%clk 0:00:34]} 36. Re6 {[%clk 0:00:28]}  Rxb3 {[%clk 0:00:33]} 0-1


[Site "https://www.chess.com"]

[Event "Titled Tuesday Blitz July 20 2021"]
[White "Yaran, Siar"]
[Black "Parkhov, Yair"]
[WhiteFideId "6323006"]
[BlackFideId "2813408"]
[WhiteElo "1977"]
[BlackElo "2131"]
[Result "1-0"]
[Round "05"]
[TimeControl "180+1"]
[Date "2021.07.21"]
[WhiteClock "0:00:07"]
[BlackClock "0:00:09"]

1. e4 {[%clk 0:03:00]}  g6 {[%clk 0:02:22]} 2. d4 {[%clk 0:02:59]}  Bg7 {[%clk 0:02:20]} 3. Nf3 {[%clk 0:02:59]}  d6 {[%clk 0:02:18]} 4. Bc4 {[%clk 0:02:58]}  Nf6 {[%clk 0:02:16]} 5. Nbd2 {[%clk 0:02:50]}  O-O {[%clk 0:02:10]} 6. O-O {[%clk 0:02:50]}  Nxe4 {[%clk 0:02:07]} 7. Nxe4 {[%clk 0:02:50]}  d5 {[%clk 0:02:06]} 8. Bd3 {[%clk 0:02:50]}  dxe4 {[%clk 0:02:06]} 9. Bxe4 {[%clk 0:02:51]}  Nd7 {[%clk 0:02:05]} 10. h3 {[%clk 0:02:49]}  c5 {[%clk 0:02:02]} 11. Be3 {[%clk 0:02:25]}  Nf6 {[%clk 0:01:57]} 12. Bd3 {[%clk 0:02:24]}  cxd4 {[%clk 0:01:54]} 13. Bxd4 {[%clk 0:02:22]}  b6 {[%clk 0:01:53]} 14. Re1 {[%clk 0:01:56]}  Bb7 {[%clk 0:01:52]} 15. c3 {[%clk 0:01:55]}  Rc8 {[%clk 0:01:43]} 16. Qe2 {[%clk 0:01:53]}  Nd5 {[%clk 0:01:32]} 17. Bxg7 {[%clk 0:01:46]}  Kxg7 {[%clk 0:01:29]} 18. Rad1 {[%clk 0:01:45]}  e6 {[%clk 0:01:24]} 19. c4 {[%clk 0:01:39]}  Nf4 {[%clk 0:01:20]} 20. Qe5+ {[%clk 0:01:30]}  Qf6 {[%clk 0:01:19]} 21. Be4 {[%clk 0:01:25]}  Bxe4 {[%clk 0:01:14]} 22. Rxe4 {[%clk 0:01:23]}  Qxe5 {[%clk 0:01:03]} 23. Nxe5 {[%clk 0:01:19]}  g5 {[%clk 0:00:57]} 24. g3 {[%clk 0:00:43]}  Ng6 {[%clk 0:00:56]} 25. Nxg6 {[%clk 0:00:38]}  Kxg6 {[%clk 0:00:55]} 26. Rd7 {[%clk 0:00:29]}  a5 {[%clk 0:00:49]} 27. Red4 {[%clk 0:00:28]}  Rc6 {[%clk 0:00:45]} 28. b3 {[%clk 0:00:27]}  a4 {[%clk 0:00:44]} 29. Kg2 {[%clk 0:00:24]}  axb3 {[%clk 0:00:44]} 30. axb3 {[%clk 0:00:25]}  Ra8 {[%clk 0:00:43]} 31. Rb7 {[%clk 0:00:23]}  Ra3 {[%clk 0:00:41]} 32. Rdd7 {[%clk 0:00:20]}  f5 {[%clk 0:00:35]} 33. Rg7+ {[%clk 0:00:15]}  Kf6 {[%clk 0:00:34]} 34. f4 {[%clk 0:00:15]}  gxf4 {[%clk 0:00:30]} 35. gxf4 {[%clk 0:00:16]}  e5 {[%clk 0:00:29]} 36. Rgf7+ {[%clk 0:00:15]}  Kg6 {[%clk 0:00:29]} 37. Rg7+ {[%clk 0:00:15]}  Kh5 {[%clk 0:00:29]} 38. Rxh7+ {[%clk 0:00:14]}  Rh6 {[%clk 0:00:29]} 39. Rxh6+ {[%clk 0:00:13]}  Kxh6 {[%clk 0:00:30]} 40. Rxb6+ {[%clk 0:00:14]}  Kh5 {[%clk 0:00:28]} 41. fxe5 {[%clk 0:00:14]}  Kg5 {[%clk 0:00:28]} 42. h4+ {[%clk 0:00:12]}  Kf4 {[%clk 0:00:26]} 43. e6 {[%clk 0:00:12]}  Ra2+ {[%clk 0:00:26]} 44. Kf1 {[%clk 0:00:12]}  Kf3 {[%clk 0:00:26]} 45. Ke1 {[%clk 0:00:12]}  Ke3 {[%clk 0:00:21]} 46. Kd1 {[%clk 0:00:11]}  f4 {[%clk 0:00:09]} 47. e7 {[%clk 0:00:11]}  Ra8 {[%clk 0:00:09]} 48. Re6+ {[%clk 0:00:11]}  Kd3 {[%clk 0:00:10]} 49. Rd6+ {[%clk 0:00:09]}  Ke3 {[%clk 0:00:09]} 50. Rd8 {[%clk 0:00:09]}  Ra1+ {[%clk 0:00:09]} 51. Kc2 {[%clk 0:00:09]}  f3 {[%clk 0:00:09]} 52. e8=Q+ {[%clk 0:00:09]}  Kf2 {[%clk 0:00:09]} 53. Rd2+ {[%clk 0:00:08]}  Kg1 {[%clk 0:00:09]} 54. Qg6+ {[%clk 0:00:09]}  Kh1 {[%clk 0:00:10]} 55. Qg3 {[%clk 0:00:06]}  f2 {[%clk 0:00:08]} 56. Qf3+ {[%clk 0:00:05]}  Kh2 {[%clk 0:00:07]} 57. Qxf2+ {[%clk 0:00:05]}  Kh3 {[%clk 0:00:08]} 58. Rd3+ {[%clk 0:00:05]}  Kg4 {[%clk 0:00:08]} 59. Qg3+ {[%clk 0:00:06]}  Kf5 {[%clk 0:00:08]} 60. Qg5+ {[%clk 0:00:06]}  Ke4 {[%clk 0:00:08]} 61. Re3+ {[%clk 0:00:06]}  Kd4 {[%clk 0:00:09]} 62. Qe5# {[%clk 0:00:07]} 1-0


[Site "https://www.chess.com"]